[Event "Edmonton int."]
[Site "Edmonton CAN"]
[Date "2019.06.21"]
[Round "6.4"]
[White "Zierk, Steven"]
[Black "Banerjee, Bitan"]
[Result "1-0"]
[ECO "B51"]
[WhiteElo "2490"]
[BlackElo "2427"]
[PlyCount "99"]
[EventDate "2019.06.19"]
[EventType "tourn"]
[EventRounds "9"]
[EventCountry "CAN"]
[TimeControl "1"]

1. e4 {[%emt 0:00:05]} c5 {[%emt 0:00:07]} 2. Nf3 {[%emt 0:00:05]} d6 {
[%emt 0:00:05]} 3. Bb5+ {[%emt 0:00:25]} Nd7 {[%emt 0:00:05]} 4. O-O {
[%emt 0:00:13]} a6 {[%emt 0:01:04]} 5. Bd3 {[%emt 0:00:20]} Ngf6 {
[%emt 0:02:24]} 6. Re1 {[%emt 0:00:16]} g6 {[%emt 0:04:41]} 7. c3 {
[%emt 0:04:25]} Ne5 {[%emt 0:01:55]} 8. Be2 {[%emt 0:04:54]} Nxf3+ {
[%emt 0:07:38]} 9. Bxf3 {[%emt 0:00:51]} e5 {[%emt 0:00:11]} 10. d4 {
[%emt 0:01:08]} Qc7 {[%emt 0:00:15]} 11. a4 {[%emt 0:09:40]} b6 {[%emt 0:00:28]
} 12. Na3 {[%emt 0:07:29]} Bg7 {[%emt 0:06:32]} 13. dxe5 {[%emt 0:13:21]} dxe5
{[%emt 0:00:07]} 14. Bg5 {[%emt 0:00:37]} O-O {[%emt 0:34:46]} 15. Bxf6 {
[%emt 0:02:15]} Bxf6 {[%emt 0:00:05]} 16. Be2 {[%emt 0:00:47]} Bb7 {
[%emt 0:03:06]} 17. Bc4 {[%emt 0:00:45]} Bg5 {[%emt 0:03:34]} 18. Qe2 {
[%emt 0:05:20]} Rfd8 {[%emt 0:12:46]} 19. Rad1 {[%emt 0:02:05]} Rxd1 {
[%emt 0:01:22]} 20. Rxd1 {[%emt 0:01:04]} Rd8 {[%emt 0:00:04]} 21. Rd3 {
[%emt 0:10:31]} Kh8 {[%emt 0:02:03]} 22. Rxd8+ {[%emt 0:08:50]} Qxd8 {
[%emt 0:00:40]} 23. Bxf7 {[%emt 0:01:03]} Bxe4 {[%emt 0:05:06]} 24. Bc4 {
[%emt 0:00:58]} Bc6 {[%emt 0:03:18]} 25. Qxe5+ {[%emt 0:01:38]} Bf6 {
[%emt 0:00:10]} 26. Qe2 {[%emt 0:00:14]} Bxa4 {[%emt 0:00:34]} 27. Bxa6 {
[%emt 0:00:07]} Bc6 {[%emt 0:06:26]} 28. Bb5 {[%emt 0:01:07]} Bd5 {
[%emt 0:00:38]} 29. Nc4 {[%emt 0:04:38]} Bxc4 {[%emt 0:02:20]} 30. Bxc4 {
[%emt 0:00:03]} Qe7 {[%emt 0:00:18]} 31. Qd1 {[%emt 0:00:25]} Kg7 {
[%emt 0:01:14]} 32. g3 {[%emt 0:00:16]} Qd8 {[%emt 0:00:34]} 33. Qf3 {
[%emt 0:01:07]} Qd6 {[%emt 0:01:09]} 34. Qb7+ {[%emt 0:01:47]} Be7 {
[%emt 0:00:06]} 35. h4 {[%emt 0:01:35]} Qd8 {[%emt 0:00:54]} 36. Qe4 {
[%emt 0:01:26]} Bf6 {[%emt 0:00:56]} 37. Qe6 {[%emt 0:00:06]} Be7 {
[%emt 0:00:26]} 38. h5 {[%emt 0:01:35]} gxh5 {[%emt 0:00:47]} 39. Qe4 {
[%emt 0:07:19]} Qd6 {[%emt 0:00:27]} 40. Bd3 {[%emt 0:00:15]} Kf8 {
[%emt 0:00:34]} 41. Qxh7 {[%emt 0:03:15]} h4 {[%emt 0:05:43]} 42. Qh8+ {
[%emt 0:07:32]} Kf7 {[%emt 0:00:05]} 43. Qh5+ {[%emt 0:00:05]} Kg7 {
[%emt 0:04:30]} 44. Qg4+ {[%emt 0:08:48]} Kh6 {[%emt 0:08:41]} 45. Qe4 {
[%emt 0:00:51]} hxg3 {[%emt 0:01:08]} 46. Qh7+ {[%emt 0:00:23]} Kg5 {
[%emt 0:00:02]} 47. f4+ {[%emt 0:00:09]} Kg4 {[%emt 0:00:48]} 48. Qf5+ {
[%emt 0:00:16]} Kf3 {[%emt 0:01:31]} 49. Qe4+ {[%emt 0:00:10]} Kg4 {
[%emt 0:01:11]} 50. Be2+ {[%emt 0:00:05]} 1-0

[Event "Edmonton int."]
[Site "Edmonton CAN"]
[Date "2019.06.22"]
[Round "7.1"]
[White "Noritsyn, Nikolay"]
[Black "Daggupati, Balaji"]
[Result "1-0"]
[ECO "D12"]
[WhiteElo "2508"]
[BlackElo "2331"]
[PlyCount "55"]
[EventDate "2019.06.19"]
[EventType "tourn"]
[EventRounds "9"]
[EventCountry "CAN"]
[TimeControl "1"]

1. d4 {[%emt 0:00:16]} d5 {[%emt 0:00:06]} 2. Nf3 {[%emt 0:00:30]} Nf6 {
[%emt 0:00:07]} 3. c4 {[%emt 0:00:35]} c6 {[%emt 0:00:06]} 4. e3 {
[%emt 0:00:08]} Bf5 {[%emt 0:00:06]} 5. Nc3 {[%emt 0:00:08]} e6 {[%emt 0:00:05]
} 6. Nh4 {[%emt 0:00:13]} Be4 {[%emt 0:00:05]} 7. f3 {[%emt 0:00:12]} Bg6 {
[%emt 0:00:05]} 8. Qb3 {[%emt 0:00:44]} b5 {[%emt 0:00:06]} 9. cxd5 {
[%emt 0:01:12]} exd5 {[%emt 0:00:06]} 10. g3 {[%emt 0:00:44]} Nbd7 {
[%emt 0:01:39]} 11. Bg2 {[%emt 0:00:48]} b4 {[%emt 0:28:41]} 12. Na4 {
[%emt 0:01:03]} c5 {[%emt 0:00:41]} 13. O-O {[%emt 0:05:13]} c4 {[%emt 0:10:55]
} 14. Qd1 {[%emt 0:00:20]} Bd3 {[%emt 0:05:53]} 15. Re1 {[%emt 0:04:05]} Nb6 {
[%emt 0:06:12]} 16. e4 {[%emt 0:14:15]} dxe4 {[%emt 0:01:06]} 17. fxe4 {
[%emt 0:01:05]} Qxd4+ {[%emt 0:05:45]} 18. Be3 {[%emt 0:02:35]} Qd7 {
[%emt 0:00:36]} 19. Nc5 {[%emt 0:15:14]} Bxc5 {[%emt 0:05:04]} 20. Bxc5 {
[%emt 0:00:09]} Qb5 {[%emt 0:09:55]} 21. Bd6 {[%emt 0:00:36]} O-O-O {
[%emt 0:02:24]} 22. Nf5 {[%emt 0:10:20]} Nxe4 {[%emt 0:10:39]} 23. Qg4 {
[%emt 0:12:01]} Rd7 {[%emt 0:03:31]} 24. Bxe4 {[%emt 0:03:24]} h5 {
[%emt 0:04:31]} 25. Ne7+ {[%emt 0:02:05]} Kd8 {[%emt 0:00:06]} 26. Nc6+ {
[%emt 0:00:57]} Kc8 {[%emt 0:00:56]} 27. Nxa7+ {[%emt 0:00:14]} Kd8 {
[%emt 0:00:05]} 28. Qxg7 {[%emt 0:02:12]} 1-0

[Event "Edmonton int."]
[Site "Edmonton CAN"]
[Date "2019.06.22"]
[Round "7.2"]
[White "Banerjee, Bitan"]
[Black "Shabalov, Alexander"]
[Result "1-0"]
[ECO "A40"]
[WhiteElo "2427"]
[BlackElo "2528"]
[PlyCount "51"]
[EventDate "2019.06.19"]
[EventType "tourn"]
[EventRounds "9"]
[EventCountry "CAN"]
[TimeControl "1"]

1. d4 {[%emt 0:02:25]} e6 {[%emt 0:01:51]} 2. c4 {[%emt 0:00:08]} b6 {
[%emt 0:00:30]} 3. e4 {[%emt 0:00:05]} Bb7 {[%emt 0:00:05]} 4. Bd3 {
[%emt 0:00:04]} f5 {[%emt 0:00:33]} 5. exf5 {[%emt 0:00:19]} Bb4+ {
[%emt 0:00:06]} 6. Kf1 {[%emt 0:00:08]} Nf6 {[%emt 0:00:07]} 7. Nf3 {
[%emt 0:00:05]} O-O {[%emt 0:00:35]} 8. a3 {[%emt 0:00:04]} Bd6 {[%emt 0:00:31]
} 9. Nc3 {[%emt 0:00:06]} Bxf3 {[%emt 0:15:42]} 10. Qxf3 {[%emt 0:03:04]} Nc6 {
[%emt 0:00:15]} 11. Be3 {[%emt 0:02:40]} e5 {[%emt 0:08:44]} 12. d5 {
[%emt 0:29:23]} e4 {[%emt 0:01:33]} 13. Bxe4 {[%emt 0:09:49]} Ne5 {
[%emt 0:01:32]} 14. Qe2 {[%emt 0:11:40]} Nxe4 {[%emt 0:02:00]} 15. Nxe4 {
[%emt 0:00:05]} Rxf5 {[%emt 0:00:22]} 16. h4 {[%emt 0:13:17]} Qf8 {
[%emt 0:05:53]} 17. Rh3 {[%emt 0:06:37]} Re8 {[%emt 0:02:22]} 18. Re1 {
[%emt 0:05:15]} Ng6 {[%emt 0:04:50]} 19. Qg4 {[%emt 0:05:43]} Bf4 {
[%emt 0:29:16]} 20. Bd4 {[%emt 0:03:48]} Be5 {[%emt 0:12:27]} 21. Bxe5 {
[%emt 0:02:01]} Rexe5 {[%emt 0:01:30]} 22. Rhe3 {[%emt 0:03:15]} b5 {
[%emt 0:03:28]} 23. b3 {[%emt 0:01:03]} bxc4 {[%emt 0:02:56]} 24. bxc4 {
[%emt 0:00:01]} d6 {[%emt 0:00:32]} 25. g3 {[%emt 0:00:11]} Qe8 {[%emt 0:02:53]
} 26. Nxd6 {[%emt 0:00:29]} 1-0

[Event "Edmonton int."]
[Site "Edmonton CAN"]
[Date "2019.06.22"]
[Round "7.3"]
[White "Paragua, Mark"]
[Black "Zierk, Steven"]
[Result "1-0"]
[ECO "C05"]
[WhiteElo "2501"]
[BlackElo "2490"]
[PlyCount "117"]
[EventDate "2019.06.19"]
[EventType "tourn"]
[EventRounds "9"]
[EventCountry "CAN"]
[TimeControl "1"]

1. e4 {[%emt 0:00:06]} e6 {[%emt 0:00:27]} 2. d4 {[%emt 0:00:14]} d5 {
[%emt 0:00:04]} 3. Nd2 {[%emt 0:00:08]} Nf6 {[%emt 0:04:35]} 4. e5 {
[%emt 0:02:12]} Nfd7 {[%emt 0:00:07]} 5. c3 {[%emt 0:00:51]} c5 {[%emt 0:00:37]
} 6. Ngf3 {[%emt 0:00:12]} b6 {[%emt 0:03:17]} 7. Bb5 {[%emt 0:08:39]} a6 {
[%emt 0:09:51]} 8. Bd3 {[%emt 0:01:02]} cxd4 {[%emt 0:02:27]} 9. cxd4 {
[%emt 0:00:13]} a5 {[%emt 0:01:03]} 10. Nb1 {[%emt 0:04:16]} Ba6 {
[%emt 0:02:29]} 11. O-O {[%emt 0:01:05]} Be7 {[%emt 0:07:03]} 12. Nc3 {
[%emt 0:01:35]} Bxd3 {[%emt 0:02:29]} 13. Qxd3 {[%emt 0:00:05]} O-O {
[%emt 0:03:33]} 14. Bd2 {[%emt 0:01:00]} Nc6 {[%emt 0:09:30]} 15. Rac1 {
[%emt 0:01:44]} Rc8 {[%emt 0:01:14]} 16. a3 {[%emt 0:03:35]} Ndb8 {
[%emt 0:04:21]} 17. Nb5 {[%emt 0:07:54]} h6 {[%emt 0:06:13]} 18. Rc3 {
[%emt 0:03:43]} Qd7 {[%emt 0:01:03]} 19. Rfc1 {[%emt 0:00:06]} Rfd8 {
[%emt 0:02:13]} 20. g4 {[%emt 0:02:35]} f5 {[%emt 0:09:12]} 21. exf6 {
[%emt 0:03:10]} Bxf6 {[%emt 0:00:15]} 22. Kh1 {[%emt 0:00:54]} e5 {
[%emt 0:03:11]} 23. dxe5 {[%emt 0:05:37]} Bxe5 {[%emt 0:00:19]} 24. Nbd4 {
[%emt 0:00:07]} Bf6 {[%emt 0:04:39]} 25. g5 {[%emt 0:06:35]} hxg5 {
[%emt 0:02:13]} 26. Nxg5 {[%emt 0:02:13]} Bxg5 {[%emt 0:01:50]} 27. Bxg5 {
[%emt 0:00:07]} Re8 {[%emt 0:04:13]} 28. Qf5 {[%emt 0:02:11]} Qxf5 {
[%emt 0:02:23]} 29. Nxf5 {[%emt 0:01:49]} Re5 {[%emt 0:00:37]} 30. Nd6 {
[%emt 0:06:42]} Rf8 {[%emt 0:01:58]} 31. f4 {[%emt 0:03:09]} Re6 {
[%emt 0:00:44]} 32. Nb5 {[%emt 0:04:37]} Rfe8 {[%emt 0:00:39]} 33. Bh4 {
[%emt 0:01:06]} d4 {[%emt 0:02:47]} 34. Rd3 {[%emt 0:00:28]} Re3 {
[%emt 0:05:19]} 35. Rxe3 {[%emt 0:02:37]} Rxe3 {[%emt 0:01:20]} 36. Nxd4 {
[%emt 0:01:53]} Nxd4 {[%emt 0:00:30]} 37. Rc8+ {[%emt 0:03:09]} Kh7 {
[%emt 0:00:17]} 38. Rxb8 {[%emt 0:07:11]} Nf3 {[%emt 0:02:50]} 39. Bf2 {
[%emt 0:01:20]} Re4 {[%emt 0:01:53]} 40. Rxb6 {[%emt 0:02:37]} Rxf4 {
[%emt 0:00:05]} 41. Kg2 {[%emt 0:02:14]} Nd2 {[%emt 0:06:10]} 42. Rb5 {
[%emt 0:02:41]} Nc4 {[%emt 0:08:04]} 43. a4 {[%emt 0:01:23]} Re4 {
[%emt 0:07:21]} 44. b3 {[%emt 0:02:28]} Nd2 {[%emt 0:00:08]} 45. Bb6 {
[%emt 0:00:34]} Re2+ {[%emt 0:02:35]} 46. Kg3 {[%emt 0:01:38]} Nf1+ {
[%emt 0:00:51]} 47. Kf3 {[%emt 0:00:38]} Rb2 {[%emt 0:00:47]} 48. Bxa5 {
[%emt 0:00:49]} Nxh2+ {[%emt 0:00:07]} 49. Ke4 {[%emt 0:00:40]} Nf1 {
[%emt 0:01:27]} 50. Bc3 {[%emt 0:01:21]} Re2+ {[%emt 0:00:13]} 51. Kd4 {
[%emt 0:00:57]} Kh6 {[%emt 0:00:21]} 52. a5 {[%emt 0:01:02]} Ra2 {
[%emt 0:00:07]} 53. Rb4 {[%emt 0:02:26]} Ng3 {[%emt 0:03:15]} 54. Ra4 {
[%emt 0:01:27]} Ne2+ {[%emt 0:00:04]} 55. Kd3 {[%emt 0:00:07]} Nc1+ {
[%emt 0:00:12]} 56. Kc4 {[%emt 0:00:15]} Rc2 {[%emt 0:00:10]} 57. a6 {
[%emt 0:01:52]} Na2 {[%emt 0:00:22]} 58. a7 {[%emt 0:00:08]} Nxc3 {
[%emt 0:00:07]} 59. Ra6+ {[%emt 0:00:07]} 1-0

[Event "Edmonton int."]
[Site "Edmonton CAN"]
[Date "2019.06.22"]
[Round "7.4"]
[White "Balakrishnan, Praveen"]
[Black "Porper, Edward"]
[Result "1/2-1/2"]
[ECO "D45"]
[WhiteElo "2428"]
[BlackElo "2382"]
[PlyCount "64"]
[EventDate "2019.06.19"]
[EventType "tourn"]
[EventRounds "9"]
[EventCountry "CAN"]
[TimeControl "1"]

1. d4 {[%emt 0:00:03]} d5 {[%emt 0:00:07]} 2. c4 {[%emt 0:00:07]} c6 {
[%emt 0:00:01]} 3. Nf3 {[%emt 0:00:09]} Nf6 {[%emt 0:00:04]} 4. Nc3 {
[%emt 0:00:12]} e6 {[%emt 0:00:08]} 5. e3 {[%emt 0:00:13]} Nbd7 {[%emt 0:00:03]
} 6. Bd2 {[%emt 0:01:10]} b6 {[%emt 0:02:57]} 7. Bd3 {[%emt 0:00:51]} Bb7 {
[%emt 0:00:11]} 8. O-O {[%emt 0:00:15]} Be7 {[%emt 0:01:06]} 9. Qe2 {
[%emt 0:01:30]} O-O {[%emt 0:01:02]} 10. Rfd1 {[%emt 0:00:30]} dxc4 {
[%emt 0:06:50]} 11. Bxc4 {[%emt 0:00:07]} c5 {[%emt 0:00:05]} 12. Ba6 {
[%emt 0:01:03]} Qc8 {[%emt 0:01:45]} 13. Bxb7 {[%emt 0:00:08]} Qxb7 {
[%emt 0:00:02]} 14. e4 {[%emt 0:00:12]} cxd4 {[%emt 0:01:23]} 15. Nxd4 {
[%emt 0:00:06]} Nc5 {[%emt 0:06:20]} 16. f3 {[%emt 0:09:33]} Rfd8 {
[%emt 0:00:24]} 17. Be3 {[%emt 0:04:32]} Rac8 {[%emt 0:02:29]} 18. Rac1 {
[%emt 0:01:59]} a6 {[%emt 0:05:06]} 19. b4 {[%emt 0:12:21]} Ncd7 {
[%emt 0:00:18]} 20. b5 {[%emt 0:00:23]} axb5 {[%emt 0:00:17]} 21. Ndxb5 {
[%emt 0:03:32]} Nc5 {[%emt 0:02:20]} 22. Bd4 {[%emt 0:07:49]} Qb8 {
[%emt 0:02:38]} 23. Rb1 {[%emt 0:12:41]} Rd7 {[%emt 0:01:49]} 24. Kh1 {
[%emt 0:13:41]} Rcd8 {[%emt 0:02:04]} 25. Bxc5 {[%emt 0:07:08]} Bxc5 {
[%emt 0:00:26]} 26. Na4 {[%emt 0:00:59]} Qe5 {[%emt 0:03:10]} 27. Rxd7 {
[%emt 0:01:51]} Rxd7 {[%emt 0:00:06]} 28. Rd1 {[%emt 0:00:19]} h5 {
[%emt 0:04:47]} 29. Rxd7 {[%emt 0:06:30]} Nxd7 {[%emt 0:00:01]} 30. Qd1 {
[%emt 0:00:46]} h4 {[%emt 0:03:03]} 31. Nxc5 {[%emt 0:01:17]} Qxc5 {
[%emt 0:00:08]} 32. a4 {[%emt 0:01:05]} Nf6 {[%emt 0:01:01]} 1/2-1/2

[Event "Edmonton int."]
[Site "Edmonton CAN"]
[Date "2019.06.22"]
[Round "7.5"]
[White "Dave, Bhavik"]
[Black "Findlay, Ian"]
[Result "0-1"]
[ECO "A61"]
[WhiteElo "1818"]
[BlackElo "2206"]
[PlyCount "147"]
[EventDate "2019.06.19"]
[EventType "tourn"]
[EventRounds "9"]
[EventCountry "CAN"]
[TimeControl "1"]

1. d4 {[%emt 0:02:57]} Nf6 {[%emt 0:00:10]} 2. c4 {[%emt 0:00:06]} c5 {
[%emt 0:00:05]} 3. d5 {[%emt 0:00:15]} e6 {[%emt 0:00:06]} 4. Nc3 {
[%emt 0:00:06]} exd5 {[%emt 0:00:04]} 5. cxd5 {[%emt 0:00:11]} d6 {
[%emt 0:00:04]} 6. Nf3 {[%emt 0:01:36]} g6 {[%emt 0:00:09]} 7. Bf4 {
[%emt 0:01:06]} Bg7 {[%emt 0:00:12]} 8. Qa4+ {[%emt 0:01:18]} Bd7 {
[%emt 0:00:09]} 9. Qb3 {[%emt 0:00:11]} Qc7 {[%emt 0:00:17]} 10. h3 {
[%emt 0:01:59]} O-O {[%emt 0:00:17]} 11. Nd2 {[%emt 0:00:07]} b5 {
[%emt 0:04:15]} 12. e3 {[%emt 0:03:55]} Na6 {[%emt 0:07:29]} 13. Bxb5 {
[%emt 0:16:28]} Bxb5 {[%emt 0:01:48]} 14. Nxb5 {[%emt 0:02:50]} Qa5 {
[%emt 0:00:09]} 15. Ke2 {[%emt 0:18:59]} Nxd5 {[%emt 0:05:27]} 16. Bxd6 {
[%emt 0:03:07]} Nab4 {[%emt 0:10:53]} 17. a4 {[%emt 0:03:37]} Rfc8 {
[%emt 0:01:12]} 18. Nc4 {[%emt 0:00:55]} Qd8 {[%emt 0:00:37]} 19. Rhd1 {
[%emt 0:01:34]} Qg5 {[%emt 0:03:03]} 20. Kf1 {[%emt 0:02:17]} a6 {
[%emt 0:03:15]} 21. Nc3 {[%emt 0:01:08]} Nxc3 {[%emt 0:04:56]} 22. bxc3 {
[%emt 0:00:23]} Nd5 {[%emt 0:00:12]} 23. Rd3 {[%emt 0:06:13]} Nb4 {
[%emt 0:07:47]} 24. cxb4 {[%emt 0:05:41]} Bxa1 {[%emt 0:01:36]} 25. Nb6 {
[%emt 0:00:19]} c4 {[%emt 0:03:10]} 26. Nxc4 {[%emt 0:05:25]} Bf6 {
[%emt 0:01:08]} 27. Bc5 {[%emt 0:04:01]} Rc7 {[%emt 0:10:14]} 28. Nb6 {
[%emt 0:06:12]} Rd8 {[%emt 0:00:57]} 29. Nd5 {[%emt 0:02:51]} Rcd7 {
[%emt 0:00:21]} 30. e4 {[%emt 0:00:55]} Kg7 {[%emt 0:05:46]} 31. a5 {
[%emt 0:02:12]} Be5 {[%emt 0:02:17]} 32. Qd1 {[%emt 0:05:31]} f5 {
[%emt 0:01:22]} 33. f3 {[%emt 0:02:40]} fxe4 {[%emt 0:09:35]} 34. fxe4 {
[%emt 0:00:06]} Rf7+ {[%emt 0:00:13]} 35. Kg1 {[%emt 0:01:38]} h5 {
[%emt 0:00:13]} 36. Rf3 {[%emt 0:00:33]} Rxf3 {[%emt 0:03:33]} 37. Qxf3 {
[%emt 0:00:01]} Qc1+ {[%emt 0:00:20]} 38. Kf2 {[%emt 0:01:26]} Qd2+ {
[%emt 0:06:26]} 39. Kf1 {[%emt 0:00:32]} Re8 {[%emt 0:01:33]} 40. Qe3 {
[%emt 0:00:34]} Qd1+ {[%emt 0:00:22]} 41. Qe1 {[%emt 0:00:58]} Qb3 {
[%emt 0:12:28]} 42. Qf2 {[%emt 0:08:07]} Qb1+ {[%emt 0:15:42]} 43. Qe1 {
[%emt 0:00:22]} Qc2 {[%emt 0:00:32]} 44. Qe2 {[%emt 0:00:46]} Qc1+ {
[%emt 0:00:33]} 45. Qe1 {[%emt 0:01:09]} Qg5 {[%emt 0:00:14]} 46. Qe3 {
[%emt 0:10:40]} Qxe3 {[%emt 0:00:54]} 47. Bxe3 {[%emt 0:00:25]} Bd6 {
[%emt 0:03:27]} 48. Ke2 {[%emt 0:04:59]} Rxe4 {[%emt 0:00:33]} 49. Kd3 {
[%emt 0:00:06]} Re8 {[%emt 0:00:58]} 50. Kc4 {[%emt 0:01:13]} Rc8+ {
[%emt 0:00:23]} 51. Bc5 {[%emt 0:00:26]} Bb8 {[%emt 0:03:16]} 52. Ne3 {
[%emt 0:02:27]} Kf6 {[%emt 0:00:47]} 53. Kd5 {[%emt 0:01:38]} Bf4 {
[%emt 0:00:49]} 54. Ke4 {[%emt 0:01:15]} Bxe3 {[%emt 0:00:16]} 55. Kxe3 {
[%emt 0:00:36]} Ke5 {[%emt 0:00:08]} 56. g3 {[%emt 0:01:45]} Rc6 {
[%emt 0:00:24]} 57. Kd3 {[%emt 0:00:54]} Kd5 {[%emt 0:00:04]} 58. Ke3 {
[%emt 0:00:31]} Re6+ {[%emt 0:00:10]} 59. Kf3 {[%emt 0:00:18]} Re4 {
[%emt 0:00:16]} 60. Bf8 {[%emt 0:01:14]} g5 {[%emt 0:00:33]} 61. Bc5 {
[%emt 0:00:40]} Rc4 {[%emt 0:00:43]} 62. g4 {[%emt 0:00:31]} Rc3+ {
[%emt 0:00:26]} 63. Be3 {[%emt 0:00:23]} h4 {[%emt 0:03:14]} 64. Kf2 {
[%emt 0:00:35]} Ke4 {[%emt 0:00:53]} 65. Bxg5 {[%emt 0:00:13]} Rxh3 {
[%emt 0:00:02]} 66. Be7 {[%emt 0:00:49]} Rf3+ {[%emt 0:00:06]} 67. Ke2 {
[%emt 0:00:29]} h3 {[%emt 0:00:15]} 68. Bd6 {[%emt 0:00:18]} Rd3 {
[%emt 0:00:34]} 69. Bh2 {[%emt 0:00:38]} Rb3 {[%emt 0:00:07]} 70. Kf2 {
[%emt 0:00:16]} Rxb4 {[%emt 0:00:17]} 71. Kg3 {[%emt 0:00:48]} Rb3+ {
[%emt 0:00:32]} 72. Kh4 {[%emt 0:00:16]} Rb5 {[%emt 0:01:06]} 73. Kxh3 {
[%emt 0:00:44]} Rxa5 {[%emt 0:00:05]} 74. Bd6 {[%emt 0:00:32]} 0-1

[Event "Edmonton int."]
[Site "Edmonton CAN"]
[Date "2019.06.22"]
[Round "8.1"]
[White "Daggupati, Balaji"]
[Black "Findlay, Ian"]
[Result "1-0"]
[ECO "B70"]
[WhiteElo "2331"]
[BlackElo "2206"]
[PlyCount "59"]
[EventDate "2019.06.19"]
[EventType "tourn"]
[EventRounds "9"]
[EventCountry "CAN"]
[TimeControl "1"]

1. e4 {[%emt 0:00:03]} c5 {[%emt 0:00:06]} 2. Nf3 {[%emt 0:00:06]} d6 {
[%emt 0:00:04]} 3. d4 {[%emt 0:00:06]} cxd4 {[%emt 0:00:05]} 4. Nxd4 {
[%emt 0:00:06]} Nf6 {[%emt 0:00:05]} 5. Nc3 {[%emt 0:00:06]} g6 {[%emt 0:00:04]
} 6. Bc4 {[%emt 0:00:05]} Bg7 {[%emt 0:00:09]} 7. O-O {[%emt 0:00:07]} O-O {
[%emt 0:00:15]} 8. h3 {[%emt 0:00:04]} Nxe4 {[%emt 0:01:16]} 9. Nxe4 {
[%emt 0:00:08]} d5 {[%emt 0:00:06]} 10. Nb5 {[%emt 0:00:05]} a6 {[%emt 0:02:10]
} 11. Bxd5 {[%emt 0:01:16]} axb5 {[%emt 0:00:08]} 12. c3 {[%emt 0:00:34]} Nc6 {
[%emt 0:00:42]} 13. Nc5 {[%emt 0:07:02]} Qc7 {[%emt 0:02:17]} 14. Qb3 {
[%emt 0:03:44]} e6 {[%emt 0:10:08]} 15. Be4 {[%emt 0:01:51]} Ne5 {
[%emt 0:01:06]} 16. Nd3 {[%emt 0:06:35]} Ra4 {[%emt 0:05:57]} 17. Nb4 {
[%emt 0:08:37]} f5 {[%emt 0:05:08]} 18. Bb1 {[%emt 0:03:58]} Bd7 {
[%emt 0:01:21]} 19. Qd1 {[%emt 0:01:59]} Nc6 {[%emt 0:08:17]} 20. Bc2 {
[%emt 0:01:57]} Raa8 {[%emt 0:04:48]} 21. Nd3 {[%emt 0:00:28]} e5 {
[%emt 0:02:12]} 22. Nc5 {[%emt 0:02:06]} Rad8 {[%emt 0:02:46]} 23. Bg5 {
[%emt 0:04:02]} Bc8 {[%emt 0:01:03]} 24. Bxd8 {[%emt 0:00:34]} Rxd8 {
[%emt 0:00:02]} 25. Qe2 {[%emt 0:00:13]} b4 {[%emt 0:00:36]} 26. Rad1 {
[%emt 0:01:42]} bxc3 {[%emt 0:03:00]} 27. bxc3 {[%emt 0:00:45]} e4 {
[%emt 0:01:36]} 28. Qc4+ {[%emt 0:00:46]} Kh8 {[%emt 0:00:10]} 29. Rxd8+ {
[%emt 0:00:40]} Nxd8 {[%emt 0:00:12]} 30. Bb3 {[%emt 0:00:05]} 1-0

[Event "Edmonton int."]
[Site "Edmonton CAN"]
[Date "2019.06.22"]
[Round "8.2"]
[White "Porper, Edward"]
[Black "Dave, Bhavik"]
[Result "1-0"]
[ECO "D43"]
[WhiteElo "2382"]
[BlackElo "1818"]
[PlyCount "85"]
[EventDate "2019.06.19"]
[EventType "tourn"]
[EventRounds "9"]
[EventCountry "CAN"]
[TimeControl "1"]

1. d4 {[%emt 0:00:04]} d5 {[%emt 0:00:05]} 2. c4 {[%emt 0:00:04]} c6 {
[%emt 0:00:04]} 3. Nf3 {[%emt 0:00:04]} Nf6 {[%emt 0:00:07]} 4. Nc3 {
[%emt 0:00:04]} e6 {[%emt 0:00:08]} 5. Bg5 {[%emt 0:00:02]} h6 {[%emt 0:00:42]}
6. Bxf6 {[%emt 0:01:23]} Qxf6 {[%emt 0:00:09]} 7. e3 {[%emt 0:00:26]} Nd7 {
[%emt 0:00:05]} 8. Bd3 {[%emt 0:00:54]} dxc4 {[%emt 0:00:09]} 9. Bxc4 {
[%emt 0:00:02]} g6 {[%emt 0:00:12]} 10. O-O {[%emt 0:01:06]} Bg7 {
[%emt 0:00:09]} 11. e4 {[%emt 0:08:01]} e5 {[%emt 0:04:23]} 12. d5 {
[%emt 0:00:25]} Nb6 {[%emt 0:01:58]} 13. Be2 {[%emt 0:02:08]} O-O {
[%emt 0:01:44]} 14. a4 {[%emt 0:03:04]} cxd5 {[%emt 0:25:40]} 15. exd5 {
[%emt 0:05:00]} Bf5 {[%emt 0:11:25]} 16. a5 {[%emt 0:01:30]} Nc8 {
[%emt 0:04:44]} 17. Nd2 {[%emt 0:09:38]} Nd6 {[%emt 0:06:23]} 18. Nc4 {
[%emt 0:06:54]} Rfd8 {[%emt 0:00:36]} 19. Nxd6 {[%emt 0:00:42]} Qxd6 {
[%emt 0:00:59]} 20. Qb3 {[%emt 0:00:56]} Bf8 {[%emt 0:06:29]} 21. Ra4 {
[%emt 0:01:52]} b6 {[%emt 0:10:07]} 22. a6 {[%emt 0:00:49]} Rac8 {
[%emt 0:03:22]} 23. Rd1 {[%emt 0:01:50]} Bd7 {[%emt 0:02:38]} 24. Bb5 {
[%emt 0:01:02]} Bxb5 {[%emt 0:02:09]} 25. Qxb5 {[%emt 0:02:52]} Qc5 {
[%emt 0:01:56]} 26. Qe2 {[%emt 0:01:54]} Bd6 {[%emt 0:02:06]} 27. h4 {
[%emt 0:01:15]} h5 {[%emt 0:01:00]} 28. g4 {[%emt 0:05:08]} hxg4 {
[%emt 0:04:58]} 29. Rxg4 {[%emt 0:02:08]} Kh8 {[%emt 0:00:38]} 30. h5 {
[%emt 0:00:54]} Rg8 {[%emt 0:00:31]} 31. hxg6 {[%emt 0:00:42]} Rxg6 {
[%emt 0:00:16]} 32. Rxg6 {[%emt 0:00:08]} fxg6 {[%emt 0:00:23]} 33. Qg4 {
[%emt 0:00:50]} Rf8 {[%emt 0:04:42]} 34. Rd2 {[%emt 0:09:32]} Qc8 {
[%emt 0:01:59]} 35. Qxc8 {[%emt 0:01:08]} Rxc8 {[%emt 0:00:04]} 36. Nb5 {
[%emt 0:01:56]} Bb4 {[%emt 0:02:16]} 37. Re2 {[%emt 0:02:08]} Rc5 {
[%emt 0:00:53]} 38. Nxa7 {[%emt 0:00:24]} Rxd5 {[%emt 0:01:04]} 39. Nc6 {
[%emt 0:00:30]} Rd1+ {[%emt 0:00:59]} 40. Kg2 {[%emt 0:00:03]} Bc5 {
[%emt 0:01:55]} 41. a7 {[%emt 0:00:51]} Ra1 {[%emt 0:02:07]} 42. Rxe5 {
[%emt 0:00:56]} Kg7 {[%emt 0:00:33]} 43. Re8 {[%emt 0:00:18]} 1-0